bitfinex-derivatives/quotes_BTCF0:USTF0_20250106
["timestamp","ask_amount","ask_price","bid_price","bid_amount"]
[1736206430873,0.37156832,102070.0,102060.0,0.53343881]
[1736206431072,0.37156832,102070.0,102060.0,0.56583881]
[1736206432074,0.1958021,102070.0,102060.0,1.3618811]
[1736206433476,0.1958021,102070.0,102060.0,1.0010811]
[1736206433679,0.1958021,102070.0,102060.0,1.0020811]
[1736206434179,0.25627291,102070.0,102060.0,1.0020811]
[1736206435068,0.25627291,102070.0,102060.0,1.3628811]
[1736206435366,0.25627291,102070.0,102060.0,1.0020811]
[1736206435572,0.25627291,102070.0,102060.0,0.73366348]
[1736206436474,0.1958021,102070.0,102060.0,0.73366348]
[1736206436675,0.25627291,102070.0,102060.0,0.73366348]
[1736206436870,0.25627291,102070.0,102060.0,0.7433862]
[1736206437066,0.25627291,102070.0,102060.0,0.45056432]
[1736206437266,0.25627291,102070.0,102060.0,0.81136432]
[1736206438577,0.25627291,102070.0,102060.0,1.37294703]
[1736206439371,0.25627291,102070.0,102060.0,1.36322431]
[1736206439574,0.25627291,102070.0,102060.0,1.3027535]
[1736206443480,0.25627291,102070.0,102060.0,1.03399267]
[1736206444976,0.25627291,102070.0,102060.0,0.74117079]
[1736206446188,0.25627291,102070.0,102060.0,1.03399267]
[1736206450381,0.25627291,102070.0,102060.0,1.30283499]
[1736206453580,0.25627291,102070.0,102060.0,1.25386699]
[1736206453787,0.25627291,102070.0,102060.0,1.22146699]
[1736206454088,0.28737291,102070.0,102060.0,1.22146699]
[1736206455892,0.06047081,102070.0,102060.0,1.22146699]
[1736206456699,0.10943681,102070.0,102060.0,1.22146699]
[1736206458286,0.47023681,102070.0,102060.0,0.79746699]
[1736206458496,0.47023681,102070.0,102060.0,0.5626642]
[1736206459100,0.50223681,102070.0,102060.0,0.5626642]
[1736206459594,0.67800303,102070.0,102060.0,0.17725464]
[1736206461191,0.67800303,102070.0,102060.0,0.41223964]
[1736206465895,0.31720303,102070.0,102060.0,0.41223964]
[1736206466094,0.67800303,102070.0,102060.0,0.41223964]
[1736206470990,0.67800303,102070.0,102060.0,0.21438364]
[1736206470991,0.73847384,102070.0,102060.0,0.21438364]
[1736206471199,0.83640484,102070.0,102050.0,0.29282188]
[1736206471398,0.474168,102060.0,102050.0,0.29282188]
[1736206471694,0.59510962,102060.0,102050.0,0.29282188]
[1736206472492,0.59510962,102060.0,102040.0,0.77737469]
[1736206472493,0.048973,102050.0,102040.0,0.0967]
[1736206472687,0.47024381,102050.0,102040.0,0.0967]
[1736206474093,0.47024381,102050.0,102040.0,0.0977]
[1736206474494,0.47024381,102050.0,102040.0,0.15817081]
[1736206474803,0.47024381,102050.0,102040.0,0.20714881]
[1736206475001,0.47024381,102050.0,102040.0,0.146678]
[1736206476203,0.47024381,102050.0,102040.0,0.0977]
[1736206476591,0.58746523,102050.0,102040.0,0.0977]
[1736206477002,0.64793604,102050.0,102040.0,0.0659]
[1736206477306,0.58746523,102050.0,102040.0,0.0659]
[1736206478598,0.64793604,102050.0,102040.0,0.0659]
[1736206478803,0.58746523,102050.0,102040.0,0.0659]
[1736206480297,0.64793604,102050.0,102040.0,0.0659]
[1736206480497,0.048983,102030.0,102020.0,0.69884241]
[1736206480703,0.10945381,102030.0,102020.0,0.76354241]
[1736206481605,0.10945381,102030.0,102020.0,0.76454241]
[1736206481804,0.19732529,102030.0,102020.0,0.47172053]
[1736206482197,0.19732529,102030.0,102020.0,0.52070753]
[1736206484305,0.10945381,102030.0,102020.0,0.52070753]
[1736206485904,0.06047081,102030.0,102020.0,0.58117834]
[1736206486300,0.048983,102030.0,102020.0,0.58117834]
[1736206488408,0.048983,102030.0,102020.0,1.1980968]
[1736206489210,0.21685161,102040.0,102020.0,1.1980968]
[1736206489411,0.21685161,102040.0,102030.0,0.06047081]
[1736206489611,0.21685161,102040.0,102030.0,0.10945381]
[1736206489807,0.27732242,102040.0,102030.0,0.10945381]
[1736206490209,0.21685161,102040.0,102030.0,0.10945381]
[1736206490413,0.27732242,102040.0,102030.0,0.10945381]
[1736206491606,0.21685161,102040.0,102030.0,0.47025381]
[1736206492713,0.13685148,102040.0,102030.0,0.47025381]
[1736206494104,0.19732229,102040.0,102030.0,0.47025381]
[1736206494300,0.19732229,102040.0,102030.0,0.409783]
[1736206494908,0.19732229,102040.0,102030.0,0.47025381]
[1736206495110,0.19732229,102040.0,102030.0,0.409783]
[1736206499620,0.10945081,102040.0,102030.0,0.70260488]
[1736206500212,0.10945081,102040.0,102030.0,0.76307569]
[1736206500213,0.04898,102040.0,102030.0,0.76307569]
[1736206500415,0.04898,102040.0,102030.0,0.70260488]
[1736206500615,0.04898,102040.0,102030.0,0.76307569]
[1736206501120,0.04898,102040.0,102030.0,1.0266347]
[1736206502115,0.19540489,102040.0,102030.0,1.0266347]
[1736206502721,0.19540489,102040.0,102030.0,1.08710551]
[1736206502924,0.17576622,102050.0,102030.0,1.66794951]
[1736206503215,0.17576622,102050.0,102040.0,0.56111962]
[1736206503622,0.048968,102060.0,102040.0,0.56111962]
[1736206503817,0.048968,102060.0,102050.0,0.42127081]
[1736206504218,0.048968,102060.0,102050.0,0.47024381]
[1736206504917,0.048968,102060.0,102050.0,0.47124381]
[1736206505119,0.048968,102060.0,102050.0,0.50291015]
[1736206505518,0.1369249,102060.0,102050.0,1.05972837]
[1736206506429,0.1369249,102060.0,102050.0,1.12272837]
[1736206506622,0.0879569,102060.0,102050.0,1.12272837]
[1736206506922,0.17576622,102080.0,102050.0,1.21486552]
[1736206507126,0.17576622,102080.0,102070.0,0.86270015]
[1736206507526,0.22472322,102090.0,102080.0,0.048959]
[1736206507735,0.22472322,102090.0,102080.0,0.56419615]
[1736206508637,0.17576622,102090.0,102080.0,0.56419615]
[1736206508846,0.17576622,102090.0,102080.0,0.56519615]
[1736206509039,0.048951,102100.0,102090.0,0.048954]
[1736206509239,0.048951,102100.0,102090.0,0.50189115]
[1736206511136,0.048951,102100.0,102090.0,0.50289115]
[1736206511841,0.12770615,102110.0,102090.0,0.50289115]
[1736206512041,0.22470322,102130.0,102120.0,0.048939]
[1736206512345,0.22470322,102130.0,102120.0,0.50187615]
[1736206513040,0.22470322,102130.0,102120.0,0.409739]
[1736206513637,0.14107415,102130.0,102120.0,0.409739]
[1736206514347,0.14107415,102130.0,102120.0,0.410739]
[1736206514938,0.14107415,102130.0,102120.0,0.411739]
[1736206515339,0.14107415,102130.0,102120.0,0.3628]
[1736206518637,0.14107415,102130.0,102120.0,0.411739]
[1736206519639,0.048937,102130.0,102120.0,0.411739]
[1736206521245,0.048937,102130.0,102120.0,0.410739]
[1736206523549,0.048937,102130.0,102120.0,0.049939]
[1736206523852,0.048937,102130.0,102120.0,0.771539]
[1736206529052,0.048937,102130.0,102120.0,0.86367615]
[1736206536159,0.048937,102130.0,102120.0,0.771539]
[1736206539856,0.19479441,102130.0,102120.0,0.771539]
[1736206540754,0.19479441,102130.0,102120.0,0.049939]
[1736206540954,0.19479441,102130.0,102120.0,0.771539]
[1736206541858,0.19479441,102130.0,102120.0,1.00447705]
[1736206543459,0.37056063,102130.0,102120.0,1.00447705]
[1736206543652,0.06121715,102130.0,102120.0,1.00447705]
[1736206543855,0.11015415,102130.0,102120.0,1.00447705]
[1736206544960,0.11015415,102130.0,102120.0,1.06486648]
[1736206545663,0.048937,102130.0,102120.0,1.33537429]
[1736206545858,0.048937,102130.0,102120.0,1.6286335]
[1736206548760,0.048937,102130.0,102120.0,1.39569545]
[1736206550573,0.10932643,102130.0,102120.0,1.33530602]
[1736206551171,0.10932643,102130.0,102120.0,1.39569545]
[1736206551364,0.048937,102130.0,102120.0,1.39569545]
[1736206552173,0.06005221,102130.0,102120.0,1.39569545]
[1736206553270,0.12044164,102130.0,102120.0,1.39569545]
[1736206553871,0.12044164,102130.0,102120.0,1.33530602]
[1736206554270,0.12044164,102130.0,102120.0,1.39569545]
[1736206555272,0.06005221,102130.0,102120.0,1.39569545]
[1736206556976,0.12044164,102130.0,102120.0,1.33530602]
[1736206557362,0.18083107,102130.0,102120.0,0.56476702]
[1736206557570,0.12044164,102130.0,102120.0,0.56476702]
[1736206558771,0.12044164,102130.0,102120.0,0.23576219]
[1736206560170,0.12044164,102130.0,102120.0,0.001]
[1736206563478,0.18083107,102130.0,102120.0,0.001]
[1736206563783,0.06005221,102130.0,102120.0,0.001]
[1736206564080,0.18083107,102130.0,102120.0,0.001]
[1736206564278,0.12044164,102130.0,102120.0,0.001]
[1736206565987,0.54163107,102130.0,102120.0,0.001]
[1736206566174,0.54163107,102130.0,102120.0,1e-06]
[1736206566374,0.54163107,102130.0,102100.0,0.29325921]
[1736206566375,0.048944,102110.0,102100.0,0.29325921]
[1736206566682,0.53052286,102110.0,102100.0,0.29325921]
[1736206568281,0.70645183,102110.0,102100.0,0.29325921]
[1736206568476,0.048949,102100.0,102090.0,0.3608]
[1736206568787,0.20182786,102100.0,102090.0,0.3608]
[1736206568985,0.1731519,102100.0,102090.0,0.3608]
[1736206569284,0.2055519,102100.0,102090.0,0.3608]
[1736206569881,0.23058783,102100.0,102090.0,0.3608]
[1736206570081,0.23058783,102100.0,102090.0,0.3618]
[1736206570385,0.32269073,102100.0,102090.0,0.3618]
[1736206573092,0.30703396,102110.0,102090.0,0.3618]
[1736206573289,0.048949,102100.0,102090.0,0.507753]
[1736206574589,0.048949,102100.0,102090.0,0.5998559]
[1736206575690,0.048949,102100.0,102090.0,0.5988559]
[1736206575887,0.048949,102100.0,102090.0,0.5998559]
[1736206582086,0.048949,102100.0,102090.0,0.4588]
[1736206582291,0.048949,102100.0,102090.0,0.3618]
[1736206582492,0.079049,102100.0,102090.0,0.001]
[1736206582692,0.110349,102100.0,102090.0,0.001]
[1736206582892,0.142449,102100.0,102090.0,0.001]
[1736206583295,0.2345519,102100.0,102090.0,0.001]
[1736206584199,0.5953519,102100.0,102090.0,0.001]
[1736206584502,0.048959,102080.0,102070.0,0.65405921]
[1736206585694,0.1410619,102080.0,102070.0,0.3608]
[1736206585884,0.1410619,102080.0,102070.0,0.3678]
[1736206586693,0.1410619,102080.0,102070.0,0.3728]
[1736206589602,0.048959,102080.0,102070.0,0.3728]
[1736206589802,0.048959,102080.0,102070.0,0.4043]
[1736206591498,0.048959,102080.0,102070.0,0.5453659]
[1736206591696,0.048959,102080.0,102070.0,0.6086659]
[1736206592203,0.048959,102080.0,102070.0,0.516563]
[1736206592912,0.048959,102080.0,102070.0,0.69198316]
[1736206593099,0.048959,102080.0,102070.0,0.78408606]
[1736206593501,0.048959,102080.0,102070.0,0.69198316]
[1736206596003,0.048959,102080.0,102070.0,0.78408606]
[1736206597714,0.048959,102080.0,102070.0,0.6086659]
[1736206598517,0.048959,102080.0,102070.0,0.61952176]
[1736206600316,0.048959,102080.0,102070.0,0.516563]
[1736206601212,0.048959,102080.0,102070.0,0.57701399]
[1736206601915,0.048959,102080.0,102070.0,0.516563]
[1736206602122,0.048959,102080.0,102070.0,0.57701399]
[1736206602418,0.048959,102080.0,102070.0,0.75264354]
[1736206603216,0.10940999,102080.0,102070.0,0.69219255]
[1736206604018,0.10940999,102080.0,102070.0,0.57962955]
[1736206604416,0.10940999,102080.0,102070.0,0.54842955]
[1736206610718,0.12008111,102080.0,102070.0,0.54842955]
[1736206611618,0.26634466,102080.0,102070.0,0.54842955]
[1736206612815,0.26634466,102080.0,102070.0,0.3728]
[1736206614024,0.26634466,102080.0,102070.0,0.9401101]
[1736206614822,0.32679565,102080.0,102070.0,0.5793101]
[1736206615025,0.38979565,102080.0,102070.0,0.5793101]
[1736206616334,0.38979565,102080.0,102070.0,0.9401101]
[1736206616514,0.38979565,102080.0,102070.0,0.5743101]
[1736206616819,0.38979565,102080.0,102070.0,0.5753101]
[1736206617222,0.41946107,102080.0,102070.0,0.1839986]
[1736206617431,0.41946107,102080.0,102070.0,0.5447986]
[1736206617621,0.35901008,102080.0,102070.0,0.5447986]
[1736206617928,0.32701008,102080.0,102070.0,0.5377986]
[1736206619632,0.47379254,102080.0,102070.0,0.5377986]
[1736206620434,0.44279254,102080.0,102070.0,0.5377986]
[1736206620921,0.26686357,102080.0,102070.0,0.5377986]
[1736206626929,0.26686357,102080.0,102070.0,0.77239461]
[1736206628122,0.26686357,102080.0,102070.0,0.59639601]
[1736206630038,0.44279254,102080.0,102070.0,0.59639601]
[1736206631232,0.44279254,102080.0,102070.0,0.656847]
[1736206631422,0.38234155,102080.0,102070.0,0.656847]
[1736206631628,0.38234155,102080.0,102070.0,0.76871]
[1736206631833,0.38234155,102080.0,102070.0,1.06196921]
[1736206632538,0.44279254,102080.0,102070.0,1.06196921]
[1736206633035,0.26686357,102080.0,102070.0,1.10061917]
[1736206633236,0.20641258,102080.0,102070.0,1.10061917]
[1736206633941,0.32844346,102090.0,102070.0,1.10061917]
[1736206634238,0.26799247,102090.0,102080.0,0.47020999]
[1736206634539,0.26799247,102090.0,102080.0,0.56386098]
[1736206634540,0.17592897,102090.0,102080.0,0.56386098]
[1736206634730,0.02622897,102090.0,102080.0,0.62431197]
[1736206634930,0.20506983,102100.0,102080.0,0.61281998]
[1736206635130,0.20506983,102100.0,102090.0,0.47020499]
[1736206635330,0.25401883,102100.0,102090.0,0.47020499]
[1736206636242,0.25501883,102100.0,102090.0,0.47020499]
[1736206636430,0.25501883,102100.0,102090.0,1.42086029]
[1736206636431,0.049949,102100.0,102090.0,1.42086029]
[1736206637028,0.050949,102100.0,102090.0,1.42086029]
[1736206637843,0.050949,102100.0,102090.0,1.41870491]
[1736206638249,0.050949,102100.0,102090.0,1.32705392]
[1736206638543,0.050949,102100.0,102090.0,1.38750491]
[1736206639147,0.050949,102100.0,102090.0,1.03686483]
[1736206640448,0.050949,102100.0,102090.0,1.27049066]
[1736206643253,0.050949,102100.0,102090.0,0.70483082]
[1736206646234,0.002,102100.0,102090.0,0.87985899]
[1736206646437,0.13688605,102120.0,102100.0,0.048949]
[1736206646637,0.13688605,102120.0,102110.0,0.78205099]
[1736206647744,0.048943,102120.0,102110.0,0.95707916]
[1736206647951,0.049943,102120.0,102110.0,1.00702316]
[1736206652849,0.001,102120.0,102110.0,1.06747415]
[1736206653751,0.001,102120.0,102110.0,1.31777531]
[1736206655344,0.001,102120.0,102110.0,1.14274714]
[1736206657556,0.001,102120.0,102110.0,1.02184516]
[1736206657857,0.001,102120.0,102110.0,1.08229615]
[1736206658343,0.001,102120.0,102110.0,1.25706158]
[1736206658944,0.049939,102120.0,102110.0,1.25706158]
[1736206660648,0.001,102120.0,102110.0,1.25706158]
[1736206662147,0.001,102120.0,102110.0,1.08229615]
[1736206663152,0.048938,102130.0,102120.0,0.10938599]
[1736206663353,0.048938,102130.0,102120.0,0.53063698]
[1736206664253,0.048938,102130.0,102120.0,0.47018599]
[1736206664655,0.048938,102130.0,102120.0,0.47118599]
[1736206665259,0.048938,102130.0,102120.0,0.76526281]
[1736206666159,0.048938,102130.0,102120.0,0.70481182]
[1736206666462,0.081738,102130.0,102120.0,0.70481182]
[1736206666963,0.081738,102130.0,102120.0,0.88011056]
[1736206667963,0.081738,102130.0,102120.0,0.51931056]
[1736206668162,0.081738,102130.0,102120.0,1.06561182]
[1736206668462,0.081738,102130.0,102120.0,0.34401182]
[1736206668664,0.081738,102130.0,102120.0,1.06561182]
[1736206674073,0.081738,102130.0,102120.0,1.63859234]
[1736206675569,0.1989954,102130.0,102120.0,1.63859234]
[1736206677167,0.1989954,102130.0,102120.0,1.40496651]
[1736206680169,0.1989954,102130.0,102120.0,1.75560659]
[1736206686572,0.1989954,102130.0,102120.0,1.79828195]
[1736206688081,0.34538716,102130.0,102120.0,1.79828195]
[1736206690481,0.1989954,102130.0,102120.0,1.46319272]
[1736206691983,0.45390008,102140.0,102120.0,1.46319272]
[1736206692180,0.45390008,102140.0,102130.0,0.3608]
[1736206692679,0.45390008,102140.0,102130.0,0.409735]
[1736206693182,0.45390008,102140.0,102130.0,0.410735]
[1736206693380,0.30750832,102140.0,102130.0,0.93819427]
[1736206694182,0.32825091,102140.0,102130.0,0.93819427]
[1736206694977,0.32825091,102140.0,102130.0,1.22446215]
[1736206695173,0.36155091,102140.0,102130.0,1.22446215]
[1736206695373,0.30109992,102140.0,102130.0,1.22446215]
[1736206695580,0.36155091,102140.0,102130.0,1.22446215]
[1736206696381,0.36155091,102140.0,102130.0,1.22546215]
[1736206696882,0.50839442,102140.0,102130.0,1.22546215]
[1736206698088,0.36155091,102140.0,102130.0,0.93919427]
[1736206699183,0.36155091,102140.0,102130.0,0.89025927]
[1736206699587,0.36155091,102140.0,102130.0,0.59722634]
[1736206700582,0.44792455,102140.0,102130.0,0.64616134]
[1736206700781,0.50837554,102140.0,102130.0,0.64616134]
[1736206701873,0.50837554,102140.0,102130.0,0.59722634]
[1736206704282,0.36155091,102140.0,102130.0,0.59722634]
[1736206704483,0.4220019,102140.0,102130.0,0.59722634]
[1736206705285,0.36155091,102140.0,102130.0,0.59722634]
[1736206706783,0.4220019,102140.0,102130.0,0.59722634]
[1736206707886,0.36155091,102140.0,102130.0,0.59722634]
[1736206709282,0.4220019,102140.0,102130.0,0.59722634]
[1736206709482,0.7828019,102140.0,102130.0,0.23642634]
[1736206710491,0.7828019,102140.0,102130.0,0.41223341]
[1736206711979,0.7828019,102140.0,102130.0,0.17780707]
[1736206713798,0.4220019,102140.0,102130.0,0.17780707]
[1736206719996,0.30109992,102140.0,102130.0,0.17780707]
[1736206720292,0.4220019,102140.0,102130.0,0.17780707]
[1736206721594,0.6660241,102140.0,102130.0,0.17780707]
[1736206722200,0.72647509,102140.0,102130.0,0.17780707]
[1736206723997,0.5261696,102140.0,102130.0,0.17780707]
[1736206726000,0.40526762,102140.0,102130.0,0.17780707]
[1736206726186,0.46571861,102140.0,102130.0,0.17780707]
[1736206726392,0.48482115,102140.0,102130.0,0.17780707]
[1736206727099,0.12848553,102140.0,102130.0,0.17780707]
[1736206727299,0.18893652,102140.0,102130.0,0.17780707]
[1736206728600,0.12848553,102140.0,102130.0,0.17780707]
[1736206728988,0.12848553,102140.0,102130.0,0.53860707]
[1736206730592,0.27520534,102140.0,102130.0,0.59722634]
[1736206730797,0.33565633,102140.0,102130.0,0.59722634]
[1736206732003,0.21475435,102140.0,102130.0,0.59722634]
[1736206732711,0.33565633,102140.0,102130.0,0.59722634]
[1736206733093,0.33565633,102140.0,102130.0,0.77292781]
[1736206737510,0.18893652,102140.0,102130.0,0.77292781]
[1736206737807,0.18893652,102140.0,102130.0,0.41212781]
[1736206738008,0.18893652,102140.0,102130.0,0.77292781]
[1736206738212,0.06803454,102140.0,102130.0,0.77292781]
[1736206738415,0.18893652,102140.0,102130.0,0.77292781]
[1736206740908,0.33569551,102140.0,102130.0,0.41212781]
[1736206742311,0.18893652,102140.0,102130.0,0.41212781]
[1736206744205,0.12848553,102140.0,102130.0,0.41212781]
[1736206744416,0.18893652,102140.0,102130.0,0.41212781]
[1736206745604,0.36505334,102140.0,102130.0,0.41212781]
[1736206751017,0.30460235,102140.0,102130.0,0.41212781]
[1736206752619,0.36505334,102140.0,102130.0,0.41212781]
[1736206754322,0.30460235,102140.0,102130.0,0.41212781]
[1736206755020,0.06045099,102140.0,102130.0,0.41212781]
[1736206755317,0.10938299,102140.0,102130.0,0.41212781]
[1736206755515,0.10938299,102140.0,102130.0,0.77292781]
[1736206757325,0.37350311,102140.0,102130.0,0.95644607]
[1736206761119,0.37350311,102140.0,102130.0,1.19064527]
[1736206762625,0.16631872,102140.0,102130.0,1.19064527]
[1736206762924,0.22676971,102140.0,102130.0,1.19064527]
[1736206763319,0.16631872,102140.0,102130.0,1.19064527]
[1736206763715,0.22676971,102140.0,102130.0,1.19064527]
[1736206766922,0.25611639,102140.0,102130.0,0.5969992]
[1736206768830,0.1956654,102140.0,102130.0,0.5969992]
[1736206769231,0.25611639,102140.0,102130.0,0.5969992]
[1736206769527,0.25611639,102140.0,102130.0,0.77262848]
[1736206774929,0.1956654,102140.0,102130.0,0.77262848]
[1736206775129,0.25611639,102140.0,102130.0,0.77262848]
[1736206778735,0.25611639,102140.0,102130.0,0.5969992]
[1736206780938,0.1956654,102140.0,102130.0,0.5969992]
[1736206781130,0.25611639,102140.0,102130.0,0.5969992]
[1736206784839,0.06045099,102140.0,102130.0,0.5969992]
[1736206785142,0.10938299,102140.0,102130.0,0.5969992]
[1736206785945,0.10938299,102140.0,102130.0,1.19800392]
[1736206790637,0.048932,102140.0,102130.0,1.19800392]
[1736206795647,0.048932,102140.0,102130.0,0.96380472]
[1736206799654,0.22494093,102140.0,102130.0,0.96380472]
[1736206801756,0.28539192,102140.0,102130.0,0.96380472]
[1736206801957,0.34584291,102140.0,102130.0,0.60300472]
[1736206802144,0.74204291,102140.0,102130.0,0.60300472]
[1736206802851,0.8024939,102140.0,102130.0,0.60300472]
[1736206803050,0.74204291,102140.0,102130.0,0.60300472]
[1736206803852,0.56603398,102140.0,102130.0,0.002]
[1736206804656,0.048935,102130.0,102120.0,0.40836877]
[1736206804858,0.56623698,102130.0,102120.0,0.40836877]
[1736206806058,0.56623698,102130.0,102120.0,0.40936877]
[1736206806460,0.74318712,102130.0,102120.0,0.001]
[1736206807763,0.78018712,102130.0,102120.0,0.001]
[1736206808664,0.71973613,102130.0,102120.0,0.001]
[1736206808960,0.65928514,102130.0,102120.0,0.001]
[1736206809165,0.71973613,102130.0,102120.0,0.001]
[1736206810869,0.54378599,102130.0,102120.0,0.001]
[1736206811460,0.58127034,102130.0,102120.0,0.001]
[1736206811672,0.52081935,102130.0,102120.0,0.001]
[1736206811966,0.58127034,102130.0,102120.0,0.001]
[1736206813170,0.64172133,102130.0,102120.0,0.001]
[1736206814458,0.29315503,102150.0,102120.0,0.001]
[1736206814459,0.3608,102150.0,102120.0,0.7226]
[1736206814664,0.10938099,102140.0,102130.0,0.3608]
[1736206815671,0.12997614,102140.0,102130.0,0.3608]
[1736206816467,0.37670608,102140.0,102130.0,0.36116582]
[1736206817469,0.44650608,102140.0,102130.0,0.36116582]
[1736206817664,0.30035311,102140.0,102130.0,0.36216582]
[1736206817866,0.48170608,102140.0,102130.0,0.36216582]
[1736206818972,0.42125509,102140.0,102130.0,0.36216582]
[1736206819172,0.48170608,102140.0,102130.0,0.36216582]
[1736206821377,0.48170608,102140.0,102130.0,0.002]
[1736206821566,0.048935,102130.0,102120.0,0.35780443]
[1736206821767,0.16983698,102130.0,102120.0,0.35780443]
[1736206822580,0.048939,102120.0,102110.0,0.55976644]
[1736206822772,0.30319197,102120.0,102110.0,0.19896644]
[1736206822972,0.33759197,102120.0,102110.0,0.19896644]
[1736206823473,0.27714098,102120.0,102110.0,0.19896644]
[1736206823875,0.156239,102120.0,102110.0,0.19896644]
[1736206824075,0.27714098,102120.0,102110.0,0.19896644]
[1736206824276,0.33759197,102120.0,102110.0,0.19896644]
[1736206825084,0.048944,102110.0,102100.0,0.3608]
[1736206825267,0.16984598,102110.0,102100.0,0.3608]
[1736206826180,0.17084598,102110.0,102100.0,0.398]
[1736206826484,0.17284598,102110.0,102100.0,0.399]
[1736206826679,0.26070694,102110.0,102100.0,0.399]
[1736206827984,0.37786416,102110.0,102100.0,0.399]
[1736206830373,0.37786416,102110.0,102100.0,0.0382]
[1736206830579,0.37786416,102110.0,102100.0,0.399]
[1736206832482,0.2900032,102110.0,102100.0,0.399]
[1736206833586,0.22955221,102110.0,102100.0,0.399]
[1736206833988,0.22955221,102110.0,102100.0,0.436]
[1736206836076,0.25700439,102110.0,102100.0,0.436]
[1736206836274,0.31745538,102110.0,102100.0,0.436]
[1736206838690,0.25700439,102110.0,102100.0,0.436]
[1736206838886,0.25700439,102110.0,102100.0,0.49645099]
[1736206839081,0.20029816,102110.0,102100.0,0.49645099]
[1736206839387,0.20029816,102110.0,102100.0,0.436]
[1736206839888,0.13984717,102110.0,102100.0,0.49645099]
[1736206840292,0.20029816,102110.0,102100.0,0.436]
[1736206840591,0.20029816,102110.0,102100.0,1.08310806]
[1736206841988,0.11239499,102110.0,102100.0,1.08310806]
[1736206842183,0.051944,102110.0,102100.0,1.08310806]
[1736206842384,0.11239499,102110.0,102100.0,1.08310806]
[1736206843184,0.11239499,102110.0,102100.0,1.43374814]
[1736206843384,0.04893,102140.0,102100.0,1.43374814]
[1736206843583,0.14422713,102140.0,102130.0,0.7216]
[1736206844593,0.14522713,102140.0,102130.0,0.7216]
[1736206844892,0.12504523,102140.0,102130.0,0.7226]
[1736206845391,0.24594721,102140.0,102130.0,0.7236]
[1736206850195,0.27683563,102140.0,102130.0,0.7236]
[1736206852099,0.27683563,102140.0,102130.0,0.70117]
[1736206852702,0.27683563,102140.0,102130.0,0.68347]
[1736206853096,0.27683563,102140.0,102130.0,0.65981]
[1736206853305,0.27683563,102140.0,102130.0,0.63493458]
[1736206857404,0.27683563,102140.0,102130.0,0.61211458]
[1736206859708,0.27683563,102140.0,102130.0,0.37946458]
[1736206859897,0.27683563,102140.0,102130.0,0.002]
[1736206860104,0.27683563,102140.0,102120.0,0.3965]
[1736206860105,0.32576563,102140.0,102120.0,0.3965]
[1736206860296,0.19028257,102130.0,102120.0,0.3965]
[1736206861503,0.19028257,102130.0,102120.0,0.3975]
[1736206863612,0.19228257,102130.0,102120.0,0.3975]
[1736206863814,0.17183698,102130.0,102120.0,0.3975]
[1736206868209,0.17183698,102130.0,102120.0,0.69053293]
[1736206869408,0.17183698,102130.0,102120.0,1.08631678]
[1736206870716,0.17183698,102130.0,102120.0,1.12491678]
[1736206873316,0.25279565,102140.0,102120.0,1.12491678]
[1736206873522,0.10938299,102140.0,102130.0,0.3608]
[1736206873717,0.17874091,102140.0,102130.0,0.3994]
[1736206874526,0.2391919,102140.0,102130.0,0.3994]
[1736206874824,0.21876598,102140.0,102130.0,0.4004]
[1736206875226,0.27921697,102140.0,102130.0,0.4004]
[1736206875626,0.21876598,102140.0,102130.0,0.4004]
[1736206875923,0.21876598,102140.0,102130.0,0.4014]
[1736206878736,0.097864,102140.0,102130.0,0.4014]
[1736206879022,0.23918833,102140.0,102130.0,0.4014]
[1736206879229,0.21876598,102140.0,102130.0,1.10327879]
[1736206881524,0.21876598,102140.0,102130.0,1.10227879]
[1736206883230,0.25805023,102140.0,102130.0,1.10227879]
[1736206886027,0.25805023,102140.0,102130.0,1.33655137]
[1736206892233,0.25805023,102140.0,102130.0,0.92770551]
[1736206892439,0.13714825,102140.0,102130.0,0.92770551]
[1736206892641,0.25805023,102140.0,102130.0,0.92770551]
[1736206897143,0.25805023,102140.0,102130.0,1.33030625]
[1736206902543,0.16983298,102140.0,102130.0,1.33030625]
[1736206904750,0.16983298,102140.0,102130.0,1.09603367]
[1736206906447,0.10938199,102140.0,102130.0,1.09603367]
[1736206906642,0.16983298,102140.0,102130.0,1.09603367]
[1736206909944,0.218296,102140.0,102130.0,1.44667375]
[1736206910352,0.09739402,102140.0,102130.0,1.44667375]
[1736206910551,0.15784501,102140.0,102130.0,1.44667375]
[1736206911946,0.15784501,102140.0,102130.0,1.15364082]
[1736206912650,0.15784501,102140.0,102130.0,1.51444082]
[1736206915954,0.15784501,102140.0,102130.0,2.00728194]
[1736206920255,0.15784501,102140.0,102130.0,1.51444082]
[1736206922151,0.218296,102140.0,102130.0,1.51444082]
[1736206923647,0.218296,102140.0,102130.0,1.45712536]
[1736206923942,0.27874699,102140.0,102130.0,1.44170376]
[1736206924149,0.27874699,102140.0,102130.0,1.41852536]
[1736206924457,0.218296,102140.0,102130.0,1.41852536]
[1736206924660,0.218296,102140.0,102130.0,0.95723948]
[1736206926054,0.218296,102140.0,102130.0,1.13316009]
[1736206927255,0.218296,102140.0,102130.0,0.95723948]
[1736206929561,0.218296,102140.0,102130.0,1.13314833]
[1736206930765,0.218296,102140.0,102130.0,1.42896071]
[1736206933465,0.09739402,102140.0,102130.0,1.42896071]
[1736206933667,0.218296,102140.0,102130.0,1.42896071]
[1736206933960,0.218296,102140.0,102130.0,1.01592462]
[1736206935368,0.15784501,102140.0,102130.0,1.01592462]
[1736206935762,0.218296,102140.0,102130.0,1.01592462]
[1736206936078,0.218296,102140.0,102130.0,1.4284678]
[1736206941971,0.218296,102140.0,102130.0,1.77910788]
[1736206943066,0.218296,102140.0,102130.0,1.4284678]
[1736206945974,0.218296,102140.0,102130.0,1.77910788]
[1736206950078,0.218296,102140.0,102130.0,1.4284678]
[1736206957683,0.218296,102140.0,102130.0,1.77910788]
[1736206958591,0.218296,102140.0,102130.0,1.4284678]
[1736206959401,0.10937599,102150.0,102140.0,0.3608]
[1736206959586,0.10937599,102150.0,102140.0,0.475]
[1736206960487,0.048925,102150.0,102140.0,0.475]
[1736206960691,0.10937599,102150.0,102140.0,0.475]
[1736206960891,0.10937599,102150.0,102140.0,1.72648037]
[1736206961693,0.15800746,102150.0,102140.0,1.72648037]
[1736206962001,0.15800746,102150.0,102140.0,1.72748037]
[1736206962302,0.10937699,102150.0,102140.0,1.72848037]
[1736206962801,0.10937699,102150.0,102140.0,1.72748037]
[1736206964600,0.10937699,102150.0,102140.0,1.23918326]
[1736206965902,0.10937699,102150.0,102140.0,1.53196909]
[1736206972107,0.10937699,102150.0,102140.0,1.18132901]
[1736206974303,0.04884756,102160.0,102150.0,0.048925]
[1736206974502,0.048916,102170.0,102150.0,0.47017599]